[Event "Late-Titled-Tuesday-Blitz-February-13-2024"]
[Site "Chess.com"]
[Date "2024.02.13"]
[Round "3"]
[White "pedroholly22"]
[Black "Genghis_K"]
[Result "0-1"]
[WhiteElo "2523"]
[BlackElo "2909"]
[TimeControl "180+1"]
[EndTime "14:27:36 PST"]
[Termination "Genghis_K won by resignation"]

1. b3 {[%clk 0:02:58.7]} 1... e5 {[%clk 0:00:35]} 2. Bb2 {[%clk 0:02:59.6]} 2...
Nc6 {[%clk 0:00:34.8]} 3. e3 {[%clk 0:03:00]} 3... Nf6 {[%clk 0:00:35.7]} 4. Nf3
{[%clk 0:02:59.8]} 4... e4 {[%clk 0:00:36.4]} 5. Nd4 {[%clk 0:03:00.1]} 5...
Nxd4 {[%clk 0:00:36.9]} 6. Bxd4 {[%clk 0:03:01]} 6... d5 {[%clk 0:00:36.7]} 7.
Be2 {[%clk 0:03:01.1]} 7... Bd6 {[%clk 0:00:37]} 8. g4 {[%clk 0:02:51.3]} 8...
h6 {[%clk 0:00:37]} 9. h4 {[%clk 0:02:48.2]} 9... Qe7 {[%clk 0:00:36.8]} 10. Nc3
{[%clk 0:02:47.4]} 10... c6 {[%clk 0:00:35.8]} 11. a4 {[%clk 0:02:36.7]} 11...
Be5 {[%clk 0:00:36]} 12. Bxe5 {[%clk 0:02:24.8]} 12... Qxe5 {[%clk 0:00:36.9]}
13. Rc1 {[%clk 0:02:25.3]} 13... Be6 {[%clk 0:00:35.8]} 14. d4 {[%clk
0:02:24.3]} 14... exd3 {[%clk 0:00:35.4]} 15. cxd3 {[%clk 0:02:23.8]} 15... d4
{[%clk 0:00:35.9]} 16. exd4 {[%clk 0:02:16.3]} 16... Qxd4 {[%clk 0:00:36.8]} 17.
Ne4 {[%clk 0:02:08.6]} 17... Nxe4 {[%clk 0:00:34.3]} 18. dxe4 {[%clk 0:02:09]}
18... Qxe4 {[%clk 0:00:35.2]} 19. f3 {[%clk 0:02:01.2]} 19... Qf4 {[%clk
0:00:33.5]} 20. Kf2 {[%clk 0:01:56.9]} 20... Rd8 {[%clk 0:00:32.8]} 21. Qe1
{[%clk 0:01:51.6]} 21... O-O {[%clk 0:00:31.8]} 22. b4 {[%clk 0:01:28.6]} 22...
Rd2 {[%clk 0:00:30.7]} 23. b5 {[%clk 0:01:21.5]} 23... Bxg4 {[%clk 0:00:30.2]}
24. Rc3 {[%clk 0:01:14.8]} 24... Re8 {[%clk 0:00:30]} 25. Kf1 {[%clk 0:00:59.6]}
25... Rdxe2 {[%clk 0:00:29.7]} 26. Qxe2 {[%clk 0:00:59.5]} 26... Rxe2 {[%clk
0:00:30.2]} 27. Kxe2 {[%clk 0:01:00.4]} 27... Be6 {[%clk 0:00:28.3]} 28. bxc6
{[%clk 0:00:59.1]} 28... Bc4+ {[%clk 0:00:28.4]} 29. Kd1 {[%clk 0:00:56.1]}
29... Qd4+ {[%clk 0:00:27.1]} 30. Kc2 {[%clk 0:00:55.9]} 30... bxc6 {[%clk
0:00:21.7]} 31. Rh2 {[%clk 0:00:53.1]} 31... Bd5 {[%clk 0:00:21.3]} 32. Rd2
{[%clk 0:00:52.7]} 32... Qxa4+ {[%clk 0:00:21.7]} 33. Kd3 {[%clk 0:00:52.2]}
33... Qxh4 {[%clk 0:00:22.4]} 34. Ke3 {[%clk 0:00:52]} 34... Qg5+ {[%clk
0:00:22.3]} 35. f4 {[%clk 0:00:50.9]} 35... Qg3+ {[%clk 0:00:22.3]} 36. Kd4
{[%clk 0:00:50.4]} 36... Qxf4+ {[%clk 0:00:23]} 37. Kc5 {[%clk 0:00:50.4]} 37...
Qxd2 {[%clk 0:00:23.2]} 0-1

[Event "Late-Titled-Tuesday-Blitz-February-13-2024"]
[Site "Chess.com"]
[Date "2024.02.13"]
[Round "3"]
[White "Bugcrusher"]
[Black "tteshan"]
[Result "1-0"]
[WhiteElo "2475"]
[BlackElo "2642"]
[TimeControl "180+1"]
[EndTime "14:27:38 PST"]
[Termination "Bugcrusher won by checkmate"]

1. d4 {[%clk 0:02:59.2]} 1... g6 {[%clk 0:02:58.8]} 2. Bf4 {[%clk 0:02:58.5]}
2... Bg7 {[%clk 0:02:57.9]} 3. Nc3 {[%clk 0:02:58.3]} 3... d6 {[%clk 0:02:57.5]}
4. Nf3 {[%clk 0:02:49.2]} 4... a6 {[%clk 0:02:57]} 5. a4 {[%clk 0:02:47.1]} 5...
Bg4 {[%clk 0:02:55]} 6. Qd2 {[%clk 0:02:45.9]} 6... Nc6 {[%clk 0:02:54.6]} 7. d5
{[%clk 0:02:43.7]} 7... Nb4 {[%clk 0:02:52]} 8. h3 {[%clk 0:02:29.5]} 8... Bxf3
{[%clk 0:02:42.4]} 9. gxf3 {[%clk 0:02:29.5]} 9... Nf6 {[%clk 0:02:34.9]} 10. e4
{[%clk 0:02:29.3]} 10... Nd7 {[%clk 0:02:28.3]} 11. h4 {[%clk 0:02:25.1]} 11...
Ne5 {[%clk 0:02:27.7]} 12. Be2 {[%clk 0:02:25.7]} 12... h5 {[%clk 0:02:24.4]}
13. Be3 {[%clk 0:02:21.4]} 13... c5 {[%clk 0:02:23.2]} 14. dxc6 {[%clk 0:02:13]}
14... bxc6 {[%clk 0:02:09.6]} 15. a5 {[%clk 0:02:09.1]} 15... c5 {[%clk
0:02:08]} 16. Nd5 {[%clk 0:02:01.1]} 16... Nec6 {[%clk 0:02:03.2]} 17. c3 {[%clk
0:01:59.3]} 17... Nxd5 {[%clk 0:01:54.2]} 18. Qxd5 {[%clk 0:01:53.9]} 18... Qc7
{[%clk 0:01:47.4]} 19. f4 {[%clk 0:01:49.3]} 19... e6 {[%clk 0:01:43.5]} 20. Qa2
{[%clk 0:01:33.8]} 20... Qb7 {[%clk 0:01:37]} 21. Rg1 {[%clk 0:01:28.3]} 21...
Bf6 {[%clk 0:01:21.7]} 22. f5 {[%clk 0:01:24.5]} 22... exf5 {[%clk 0:01:17.6]}
23. exf5 {[%clk 0:01:24.4]} 23... gxf5 {[%clk 0:01:12.8]} 24. O-O-O {[%clk
0:01:23.9]} 24... O-O-O {[%clk 0:01:06.2]} 25. Bf3 {[%clk 0:01:17.3]} 25... Rd7
{[%clk 0:00:48.4]} 26. Qd5 {[%clk 0:01:10]} 26... Nxa5 {[%clk 0:00:11.5]} 27.
Qxf5 {[%clk 0:01:08.3]} 27... Qb3 {[%clk 0:00:09.6]} 28. Qxf6 {[%clk 0:01:01.7]}
28... Rhd8 {[%clk 0:00:08.4]} 29. Bd5 {[%clk 0:00:53.5]} 29... c4 {[%clk
0:00:06.1]} 30. Qd4 {[%clk 0:00:48.8]} 30... Qa2 {[%clk 0:00:05.2]} 31. Qb6
{[%clk 0:00:44.4]} 31... Nb3+ {[%clk 0:00:05.3]} 32. Kc2 {[%clk 0:00:42.3]}
32... Rc7 {[%clk 0:00:03.5]} 33. Be4 {[%clk 0:00:36.6]} 33... d5 {[%clk
0:00:02.2]} 34. Bf5+ {[%clk 0:00:36.4]} 34... Rdd7 {[%clk 0:00:01.9]} 35. Rg8#
{[%clk 0:00:36]} 1-0

[Event "Late-Titled-Tuesday-Blitz-February-13-2024"]
[Site "Chess.com"]
[Date "2024.02.13"]
[Round "3"]
[White "martinmena"]
[Black "Boninknights"]
[Result "0-1"]
[WhiteElo "2135"]
[BlackElo "2369"]
[TimeControl "180+1"]
[EndTime "14:27:40 PST"]
[Termination "Boninknights won on time"]

1. c4 {[%clk 0:03:00.9]} 1... Nc6 {[%clk 0:02:57.3]} 2. g3 {[%clk 0:02:55.9]}
2... e5 {[%clk 0:02:55.4]} 3. Bg2 {[%clk 0:02:56.5]} 3... f5 {[%clk 0:02:55.2]}
4. Nc3 {[%clk 0:02:56.7]} 4... Nf6 {[%clk 0:02:54.8]} 5. e3 {[%clk 0:02:48.3]}
5... Bb4 {[%clk 0:02:52.8]} 6. Nge2 {[%clk 0:02:43.9]} 6... O-O {[%clk
0:02:51.2]} 7. O-O {[%clk 0:02:40.9]} 7... Bxc3 {[%clk 0:02:48.9]} 8. Nxc3
{[%clk 0:02:22]} 8... d6 {[%clk 0:02:48.1]} 9. d4 {[%clk 0:02:21.9]} 9... Kh8
{[%clk 0:02:28.6]} 10. b3 {[%clk 0:02:10]} 10... Rb8 {[%clk 0:02:24.4]} 11. Bb2
{[%clk 0:02:07.8]} 11... a6 {[%clk 0:02:20.6]} 12. Rc1 {[%clk 0:01:44.6]} 12...
e4 {[%clk 0:02:14.3]} 13. Ne2 {[%clk 0:01:38.3]} 13... Nb4 {[%clk 0:02:09.7]}
14. Qd2 {[%clk 0:01:16.5]} 14... Nd3 {[%clk 0:02:04.8]} 15. Rcd1 {[%clk
0:01:14.5]} 15... c6 {[%clk 0:02:01.7]} 16. Ba3 {[%clk 0:01:08.5]} 16... b5
{[%clk 0:01:54.6]} 17. Nc1 {[%clk 0:00:57.3]} 17... bxc4 {[%clk 0:01:44.3]} 18.
bxc4 {[%clk 0:00:52.1]} 18... Nxc1 {[%clk 0:01:42.4]} 19. Rxc1 {[%clk 0:00:53]}
19... Be6 {[%clk 0:01:35.6]} 20. Qc3 {[%clk 0:00:48.3]} 20... Rf7 {[%clk
0:01:32.8]} 21. Rb1 {[%clk 0:00:46.9]} 21... Rfb7 {[%clk 0:01:31.3]} 22. Rb3
{[%clk 0:00:27.9]} 22... d5 {[%clk 0:01:25.2]} 23. c5 {[%clk 0:00:20.2]} 23...
Rxb3 {[%clk 0:01:22.1]} 24. axb3 {[%clk 0:00:21.1]} 24... g5 {[%clk 0:01:18.3]}
25. Bb4 {[%clk 0:00:19.5]} 25... f4 {[%clk 0:01:16.7]} 26. exf4 {[%clk
0:00:18.5]} 26... gxf4 {[%clk 0:01:16]} 27. gxf4 {[%clk 0:00:18.5]} 27... Nh5
{[%clk 0:01:14.6]} 28. Ba5 {[%clk 0:00:14.5]} 28... Qh4 {[%clk 0:01:12.4]} 29.
Bc7 {[%clk 0:00:12.1]} 29... Nxf4 {[%clk 0:01:01.3]} 30. Bxb8 {[%clk 0:00:08.9]}
30... Ne2+ {[%clk 0:00:59.9]} 31. Kh1 {[%clk 0:00:08.2]} 31... Nxc3 {[%clk
0:00:59.7]} 32. Be5+ {[%clk 0:00:08.4]} 32... Kg8 {[%clk 0:00:58.5]} 33. Rg1
{[%clk 0:00:07.6]} 33... Kf7 {[%clk 0:00:58.2]} 34. Bf1 {[%clk 0:00:07.2]} 34...
Bg4 {[%clk 0:00:54.3]} 35. Bg3 {[%clk 0:00:01.8]} 35... Bf3+ {[%clk 0:00:50.8]}
36. Bg2 {[%clk 0:00:02.3]} 36... Qh3 {[%clk 0:00:50.5]} 37. Bxf3 {[%clk
0:00:02.1]} 37... exf3 {[%clk 0:00:50.3]} 38. Be5 {[%clk 0:00:02.7]} 38... Ne2
{[%clk 0:00:47.7]} 39. Rg7+ {[%clk 0:00:03.1]} 39... Kf8 {[%clk 0:00:47.6]} 40.
Rg5 {[%clk 0:00:01.3]} 40... Qf1+ {[%clk 0:00:46.9]} 0-1

[Event "Late-Titled-Tuesday-Blitz-February-13-2024"]
[Site "Chess.com"]
[Date "2024.02.13"]
[Round "3"]
[White "gomeschess02"]
[Black "Chessdude1987"]
[Result "0-1"]
[WhiteElo "2177"]
[BlackElo "2384"]
[TimeControl "180+1"]
[EndTime "14:27:41 PST"]
[Termination "Chessdude1987 won by resignation"]

1. e4 {[%clk 0:03:00.9]} 1... e6 {[%clk 0:03:00.3]} 2. d4 {[%clk 0:02:59.8]}
2... d5 {[%clk 0:03:00.8]} 3. Nc3 {[%clk 0:03:00.6]} 3... Nf6 {[%clk 0:03:00.6]}
4. e5 {[%clk 0:03:00.9]} 4... Nfd7 {[%clk 0:03:00.7]} 5. f4 {[%clk 0:03:01.7]}
5... c5 {[%clk 0:03:01.2]} 6. Nf3 {[%clk 0:03:02.3]} 6... Nc6 {[%clk 0:03:01.7]}
7. Be3 {[%clk 0:03:02.7]} 7... a6 {[%clk 0:03:01.5]} 8. Qd2 {[%clk 0:03:03]}
8... Qb6 {[%clk 0:03:02]} 9. O-O-O {[%clk 0:03:02.5]} 9... Qc7 {[%clk
0:03:02.2]} 10. dxc5 {[%clk 0:02:02.9]} 10... Nxc5 {[%clk 0:02:46.4]} 11. Nd4
{[%clk 0:01:26.4]} 11... Be7 {[%clk 0:02:42.5]} 12. Kb1 {[%clk 0:01:13.2]} 12...
Nxd4 {[%clk 0:02:23.6]} 13. Bxd4 {[%clk 0:01:14.1]} 13... b5 {[%clk 0:02:23.9]}
14. f5 {[%clk 0:00:13.4]} 14... b4 {[%clk 0:02:21.2]} 15. Ne2 {[%clk 0:00:13.4]}
15... Ne4 {[%clk 0:02:19.6]} 16. Qe3 {[%clk 0:00:08.9]} 16... exf5 {[%clk
0:02:12.9]} 17. Nf4 {[%clk 0:00:09]} 17... Be6 {[%clk 0:02:08.8]} 18. Bd3 {[%clk
0:00:04.6]} 18... O-O {[%clk 0:02:06.8]} 19. h3 {[%clk 0:00:02.1]} 19... a5
{[%clk 0:02:04.8]} 20. Rhg1 {[%clk 0:00:01.8]} 20... a4 {[%clk 0:02:04]} 21. g4
{[%clk 0:00:02.3]} 21... fxg4 {[%clk 0:02:00.5]} 22. hxg4 {[%clk 0:00:02.2]}
22... a3 {[%clk 0:01:58.1]} 23. Bxe4 {[%clk 0:00:01.5]} 23... dxe4 {[%clk
0:01:55.1]} 24. Qxe4 {[%clk 0:00:02.4]} 24... axb2 {[%clk 0:01:54.7]} 25. Bxb2
{[%clk 0:00:01.5]} 25... Bxa2+ {[%clk 0:01:52]} 26. Kc1 {[%clk 0:00:02]} 26...
b3 {[%clk 0:01:48.4]} 27. c3 {[%clk 0:00:01.1]} 27... Ba3 {[%clk 0:01:45.2]} 28.
Nd5 {[%clk 0:00:01.6]} 28... Bxb2+ {[%clk 0:01:43.8]} 29. Kxb2 {[%clk
0:00:02.5]} 29... Qa7 {[%clk 0:01:41.3]} 30. Qb4 {[%clk 0:00:02.4]} 30... Rfb8
{[%clk 0:01:39.6]} 31. Ne7+ {[%clk 0:00:01.8]} 31... Kh8 {[%clk 0:01:36.7]} 32.
Qd6 {[%clk 0:00:02.2]} 32... Qf2+ {[%clk 0:01:24.3]} 33. Qd2 {[%clk 0:00:01.9]}
33... Qxd2+ {[%clk 0:01:23]} 34. Rxd2 {[%clk 0:00:02.8]} 34... Re8 {[%clk
0:01:19.8]} 35. Nc6 {[%clk 0:00:02.4]} 35... Rac8 {[%clk 0:01:17.7]} 36. Nb4
{[%clk 0:00:01.5]} 36... Rxe5 {[%clk 0:01:16.4]} 37. Rgd1 {[%clk 0:00:02.2]}
37... h6 {[%clk 0:01:14]} 38. Rf1 {[%clk 0:00:02.6]} 38... Kg8 {[%clk
0:01:06.4]} 39. Rd7 {[%clk 0:00:01.9]} 39... Re2+ {[%clk 0:01:04.8]} 40. Ka1
{[%clk 0:00:01]} 40... Ra8 {[%clk 0:00:53.4]} 41. Nd3 {[%clk 0:00:01.5]} 41...
b2+ {[%clk 0:00:44.1]} 42. Nxb2 {[%clk 0:00:02]} 42... Be6+ {[%clk 0:00:43.7]}
0-1

[Event "Late-Titled-Tuesday-Blitz-February-13-2024"]
[Site "Chess.com"]
[Date "2024.02.13"]
[Round "3"]
[White "TheSilmarils"]
[Black "nj123456"]
[Result "1-0"]
[WhiteElo "2853"]
[BlackElo "2351"]
[TimeControl "180+1"]
[EndTime "14:27:44 PST"]
[Termination "TheSilmarils won on time"]

1. Nf3 {[%clk 0:03:00.9]} 1... Nf6 {[%clk 0:02:58.7]} 2. c4 {[%clk 0:03:01]}
2... e6 {[%clk 0:02:58.8]} 3. g3 {[%clk 0:02:59.7]} 3... d5 {[%clk 0:02:59.1]}
4. Bg2 {[%clk 0:03:00.2]} 4... Be7 {[%clk 0:02:59.1]} 5. O-O {[%clk 0:03:00.4]}
5... O-O {[%clk 0:02:59.8]} 6. b3 {[%clk 0:02:59.5]} 6... c5 {[%clk 0:02:59.3]}
7. e3 {[%clk 0:02:58.6]} 7... Nc6 {[%clk 0:02:59.6]} 8. Bb2 {[%clk 0:02:58.7]}
8... b6 {[%clk 0:02:57.6]} 9. Nc3 {[%clk 0:02:57.6]} 9... Bb7 {[%clk 0:02:57.1]}
10. Ne2 {[%clk 0:02:50.8]} 10... Rc8 {[%clk 0:02:30.6]} 11. Nf4 {[%clk
0:02:46.6]} 11... dxc4 {[%clk 0:02:19.7]} 12. bxc4 {[%clk 0:02:46.5]} 12... Nb4
{[%clk 0:02:20.3]} 13. a3 {[%clk 0:02:38.9]} 13... Nc6 {[%clk 0:02:01.2]} 14.
Qe2 {[%clk 0:02:35.5]} 14... Na5 {[%clk 0:01:57]} 15. Rac1 {[%clk 0:02:32.6]}
15... Ne4 {[%clk 0:01:49]} 16. d4 {[%clk 0:01:58.7]} 16... cxd4 {[%clk
0:01:36.3]} 17. exd4 {[%clk 0:01:59.6]} 17... Nd6 {[%clk 0:01:37]} 18. d5 {[%clk
0:01:46]} 18... exd5 {[%clk 0:01:18.8]} 19. Nh5 {[%clk 0:01:26.1]} 19... d4
{[%clk 0:00:45.9]} 20. Bxd4 {[%clk 0:01:21.4]} 20... Nf5 {[%clk 0:00:45.2]} 21.
Ba1 {[%clk 0:01:16]} 21... g6 {[%clk 0:00:29.6]} 22. Bh3 {[%clk 0:01:03.9]}
22... Qd7 {[%clk 0:00:13.3]} 23. Ne5 {[%clk 0:00:57.5]} 23... Qe6 {[%clk
0:00:13]} 24. Nf4 {[%clk 0:00:58]} 24... Qd6 {[%clk 0:00:07]} 25. Rcd1 {[%clk
0:00:41.3]} 25... Qc5 {[%clk 0:00:06.9]} 26. Nd7 {[%clk 0:00:37.7]} 26... Qxa3
{[%clk 0:00:05.4]} 27. Bxf5 {[%clk 0:00:33.2]} 27... gxf5 {[%clk 0:00:05.1]} 28.
Nxf8 {[%clk 0:00:20.6]} 28... Rxf8 {[%clk 0:00:04.1]} 29. Qe5 {[%clk 0:00:18]}
29... f6 {[%clk 0:00:04]} 30. Qe6+ {[%clk 0:00:17.3]} 30... Kh8 {[%clk 0:00:04]}
31. Rd7 {[%clk 0:00:16.6]} 31... Bc8 {[%clk 0:00:02.3]} 32. Qxe7 {[%clk
0:00:16.1]} 32... Qxe7 {[%clk 0:00:01.2]} 33. Rxe7 {[%clk 0:00:17]} 1-0

[Event "Late-Titled-Tuesday-Blitz-February-13-2024"]
[Site "Chess.com"]
[Date "2024.02.13"]
[Round "3"]
[White "AradNazari"]
[Black "IngOscarArdila"]
[Result "1-0"]
[WhiteElo "2770"]
[BlackElo "2323"]
[TimeControl "180+1"]
[EndTime "14:27:44 PST"]
[Termination "AradNazari won by resignation"]

1. e4 {[%clk 0:03:00.9]} 1... e5 {[%clk 0:03:00]} 2. f4 {[%clk 0:02:57.1]} 2...
d5 {[%clk 0:02:59.1]} 3. exd5 {[%clk 0:02:54.1]} 3... e4 {[%clk 0:02:59.5]} 4.
d3 {[%clk 0:02:53.2]} 4... Nf6 {[%clk 0:02:59.6]} 5. dxe4 {[%clk 0:02:51.2]}
5... Nxe4 {[%clk 0:03:00.5]} 6. Nf3 {[%clk 0:02:35.8]} 6... Bc5 {[%clk
0:02:49.2]} 7. Qe2 {[%clk 0:02:35.9]} 7... f5 {[%clk 0:02:47.6]} 8. Nc3 {[%clk
0:02:12.2]} 8... O-O {[%clk 0:02:24.9]} 9. Nxe4 {[%clk 0:01:58.7]} 9... fxe4
{[%clk 0:02:25]} 10. Qxe4 {[%clk 0:01:47.6]} 10... Bf5 {[%clk 0:02:15.5]} 11.
Qc4 {[%clk 0:01:46]} 11... Bd6 {[%clk 0:02:14.8]} 12. Be3 {[%clk 0:01:38.3]}
12... Re8 {[%clk 0:02:13.3]} 13. Kf2 {[%clk 0:01:24.9]} 13... Nd7 {[%clk
0:02:09.4]} 14. Bd3 {[%clk 0:01:17.1]} 14... Qf6 {[%clk 0:02:01]} 15. Bd4 {[%clk
0:01:06.3]} 15... Bxd3 {[%clk 0:01:59]} 16. Qxd3 {[%clk 0:01:01.5]} 16... Qxf4
{[%clk 0:01:55.2]} 17. Rae1 {[%clk 0:00:58]} 17... Nc5 {[%clk 0:01:49.8]} 18.
Bxc5 {[%clk 0:00:38.7]} 18... Bxc5+ {[%clk 0:01:50]} 19. Kf1 {[%clk 0:00:38.3]}
19... Rxe1+ {[%clk 0:01:46.8]} 20. Kxe1 {[%clk 0:00:39.2]} 20... Re8+ {[%clk
0:01:46.4]} 21. Kd1 {[%clk 0:00:36.7]} 21... Re3 {[%clk 0:01:36.2]} 22. Qb5
{[%clk 0:00:17.3]} 22... Qd6 {[%clk 0:01:05.7]} 23. Kc1 {[%clk 0:00:12.7]} 23...
Qxd5 {[%clk 0:00:36.3]} 24. Rd1 {[%clk 0:00:10.7]} 24... Qf5 {[%clk 0:00:14.1]}
25. Rd8+ {[%clk 0:00:10.2]} 25... Kf7 {[%clk 0:00:14.5]} 26. Qc4+ {[%clk
0:00:10.7]} 26... Ke7 {[%clk 0:00:11.2]} 27. Rd5 {[%clk 0:00:09.7]} 27... Qe4
{[%clk 0:00:09.6]} 28. Qxc5+ {[%clk 0:00:09.6]} 28... Kf7 {[%clk 0:00:07.6]} 29.
Ng5+ {[%clk 0:00:10.1]} 1-0

[Event "Late-Titled-Tuesday-Blitz-February-13-2024"]
[Site "Chess.com"]
[Date "2024.02.13"]
[Round "3"]
[White "Championnn-9"]
[Black "Teidi96"]
[Result "0-1"]
[WhiteElo "2536"]
[BlackElo "2288"]
[TimeControl "180+1"]
[EndTime "14:27:46 PST"]
[Termination "Teidi96 won by resignation"]

1. Nf3 {[%clk 0:02:58.9]} 1... d5 {[%clk 0:03:00]} 2. g3 {[%clk 0:02:58.5]} 2...
e6 {[%clk 0:03:00.7]} 3. Bg2 {[%clk 0:02:59.1]} 3... Nf6 {[%clk 0:03:01.4]} 4.
O-O {[%clk 0:02:59.8]} 4... Be7 {[%clk 0:03:02.1]} 5. c4 {[%clk 0:02:58.3]} 5...
O-O {[%clk 0:03:02.1]} 6. cxd5 {[%clk 0:02:58.3]} 6... exd5 {[%clk 0:03:02.7]}
7. d4 {[%clk 0:02:58.4]} 7... c6 {[%clk 0:02:58.9]} 8. Nc3 {[%clk 0:02:57.8]}
8... a5 {[%clk 0:02:58.7]} 9. Qc2 {[%clk 0:02:54.5]} 9... Bg4 {[%clk 0:02:56.5]}
10. Ne5 {[%clk 0:02:54]} 10... Nbd7 {[%clk 0:02:51.6]} 11. Nxg4 {[%clk
0:02:49.7]} 11... Nxg4 {[%clk 0:02:51.3]} 12. e4 {[%clk 0:02:49.7]} 12... dxe4
{[%clk 0:02:50.8]} 13. Nxe4 {[%clk 0:02:49.3]} 13... Ngf6 {[%clk 0:02:48.5]} 14.
Be3 {[%clk 0:02:39.1]} 14... Nxe4 {[%clk 0:02:48.3]} 15. Qxe4 {[%clk 0:02:35.3]}
15... Nf6 {[%clk 0:02:47.8]} 16. Qf5 {[%clk 0:02:31.7]} 16... Nd5 {[%clk
0:02:42.4]} 17. Rfe1 {[%clk 0:02:25.2]} 17... g6 {[%clk 0:02:40.3]} 18. Qe4
{[%clk 0:02:22.1]} 18... Bf6 {[%clk 0:02:31.1]} 19. Bh6 {[%clk 0:02:08.5]} 19...
Re8 {[%clk 0:02:27.8]} 20. Qg4 {[%clk 0:01:59.7]} 20... Qd6 {[%clk 0:02:19.5]}
21. h4 {[%clk 0:01:52.3]} 21... Nb4 {[%clk 0:02:08.2]} 22. Rxe8+ {[%clk
0:01:38.8]} 22... Rxe8 {[%clk 0:02:07.4]} 23. Rd1 {[%clk 0:01:38.8]} 23... Nd5
{[%clk 0:01:51.7]} 24. h5 {[%clk 0:01:35.1]} 24... Bg7 {[%clk 0:01:43.8]} 25.
Bc1 {[%clk 0:01:19.7]} 25... Qe6 {[%clk 0:01:25.3]} 26. Qf3 {[%clk 0:00:56.9]}
26... Qe2 {[%clk 0:01:20]} 27. Qb3 {[%clk 0:00:49.4]} 27... Qxh5 {[%clk
0:00:39.2]} 28. Bf3 {[%clk 0:00:49.4]} 28... Qf5 {[%clk 0:00:29.8]} 29. Bxd5
{[%clk 0:00:49.4]} 29... Qxd5 {[%clk 0:00:27.1]} 30. Qxb7 {[%clk 0:00:49.1]}
30... Bxd4 {[%clk 0:00:20]} 31. Rf1 {[%clk 0:00:30.1]} 31... Qf3 {[%clk
0:00:18.2]} 32. Bd2 {[%clk 0:00:20.6]} 32... Qxg3+ {[%clk 0:00:17.1]} 33. Kh1
{[%clk 0:00:20]} 33... Qh3+ {[%clk 0:00:17.1]} 34. Kg1 {[%clk 0:00:20.3]} 34...
Re4 {[%clk 0:00:15.5]} 35. Qc8+ {[%clk 0:00:13.3]} 35... Qxc8 {[%clk 0:00:14]}
0-1

[Event "Late-Titled-Tuesday-Blitz-February-13-2024"]
[Site "Chess.com"]
[Date "2024.02.13"]
[Round "3"]
[White "ValeriyGrinev"]
[Black "Viktor_Poddubnyi"]
[Result "0-1"]
[WhiteElo "2532"]
[BlackElo "2278"]
[TimeControl "180+1"]
[EndTime "14:27:46 PST"]
[Termination "Viktor_Poddubnyi won by checkmate"]

1. e4 {[%clk 0:03:00.9]} 1... g6 {[%clk 0:03:00.3]} 2. d4 {[%clk 0:03:00.2]}
2... Bg7 {[%clk 0:03:00.8]} 3. c4 {[%clk 0:02:59.4]} 3... Nc6 {[%clk 0:03:00.2]}
4. d5 {[%clk 0:02:59.1]} 4... Nd4 {[%clk 0:03:00]} 5. f4 {[%clk 0:02:57.2]} 5...
c5 {[%clk 0:02:58.9]} 6. Nc3 {[%clk 0:02:53]} 6... d6 {[%clk 0:02:58.4]} 7. h3
{[%clk 0:02:52.2]} 7... e6 {[%clk 0:02:39.5]} 8. g3 {[%clk 0:02:42.3]} 8... exd5
{[%clk 0:02:35.1]} 9. exd5 {[%clk 0:02:33.9]} 9... Nf6 {[%clk 0:02:26.3]} 10.
Kf2 {[%clk 0:02:30.6]} 10... O-O {[%clk 0:02:24.8]} 11. Bd3 {[%clk 0:02:28.5]}
11... Bf5 {[%clk 0:01:59.7]} 12. Nf3 {[%clk 0:02:22.8]} 12... Re8 {[%clk
0:01:57.6]} 13. g4 {[%clk 0:02:19.2]} 13... Ne4+ {[%clk 0:01:44.4]} 14. Nxe4
{[%clk 0:02:08]} 14... Bxe4 {[%clk 0:01:45.3]} 15. Bxe4 {[%clk 0:02:01.5]} 15...
Rxe4 {[%clk 0:01:46.2]} 16. Nxd4 {[%clk 0:01:57.3]} 16... Bxd4+ {[%clk
0:01:27.6]} 17. Kf3 {[%clk 0:01:56.2]} 17... Qh4 {[%clk 0:01:09.1]} 18. Rh2
{[%clk 0:01:55.6]} 18... Rae8 {[%clk 0:01:05.4]} 19. Bd2 {[%clk 0:01:49.2]}
19... Be3 {[%clk 0:00:47.3]} 20. Be1 {[%clk 0:01:36.1]} 20... Rxf4+ {[%clk
0:00:37.9]} 21. Kg2 {[%clk 0:01:35.7]} 21... Qf6 {[%clk 0:00:37.7]} 22. Bg3
{[%clk 0:01:31.5]} 22... Rxc4 {[%clk 0:00:33.7]} 23. b3 {[%clk 0:01:23.9]} 23...
Rd4 {[%clk 0:00:29.4]} 24. Qf1 {[%clk 0:01:20.1]} 24... Qxf1+ {[%clk 0:00:18.3]}
25. Kxf1 {[%clk 0:01:18.1]} 25... Rxd5 {[%clk 0:00:18.2]} 26. Re2 {[%clk
0:01:17.4]} 26... Re6 {[%clk 0:00:15.7]} 27. Rae1 {[%clk 0:01:16.3]} 27... Rd3
{[%clk 0:00:13.2]} 28. Kg2 {[%clk 0:01:13.9]} 28... d5 {[%clk 0:00:12.7]} 29.
Bb8 {[%clk 0:01:08.9]} 29... a6 {[%clk 0:00:11.2]} 30. Ba7 {[%clk 0:01:09.6]}
30... b6 {[%clk 0:00:09.1]} 31. Bb8 {[%clk 0:01:05.6]} 31... d4 {[%clk 0:00:09]}
32. Bg3 {[%clk 0:01:05.3]} 32... Kg7 {[%clk 0:00:08.3]} 33. h4 {[%clk
0:01:06.2]} 33... Re4 {[%clk 0:00:07.9]} 34. h5 {[%clk 0:01:07.1]} 34... Rxg4
{[%clk 0:00:07.2]} 35. Kf3 {[%clk 0:01:08]} 35... gxh5 {[%clk 0:00:07]} 36. Be5+
{[%clk 0:01:07.6]} 36... f6 {[%clk 0:00:06.2]} 37. Bc7 {[%clk 0:01:08.5]} 37...
Bd2+ {[%clk 0:00:06.2]} 38. Re3 {[%clk 0:01:06.4]} 38... Rxe3+ {[%clk
0:00:05.6]} 39. Rxe3 {[%clk 0:01:06.8]} 39... Bxe3 {[%clk 0:00:06.5]} 40. Bxb6
{[%clk 0:01:07.2]} 40... Rg5 {[%clk 0:00:05.1]} 41. Bc7 {[%clk 0:01:05.6]} 41...
h4 {[%clk 0:00:05.3]} 42. Bd6 {[%clk 0:01:04.8]} 42... h3 {[%clk 0:00:05.4]} 43.
b4 {[%clk 0:01:05.7]} 43... cxb4 {[%clk 0:00:05.2]} 44. Ke2 {[%clk 0:01:04.7]}
44... Rg2+ {[%clk 0:00:04.9]} 45. Kd3 {[%clk 0:01:05.6]} 45... h2 {[%clk
0:00:05]} 46. Bxh2 {[%clk 0:01:06.3]} 46... Rxh2 {[%clk 0:00:04.9]} 47. a3
{[%clk 0:01:07.2]} 47... bxa3 {[%clk 0:00:05]} 48. Kc4 {[%clk 0:01:08.1]} 48...
a2 {[%clk 0:00:05.4]} 49. Kd3 {[%clk 0:01:09]} 49... a1=Q {[%clk 0:00:05.2]} 50.
Ke4 {[%clk 0:01:09.9]} 50... d3 {[%clk 0:00:05.2]} 51. Kd5 {[%clk 0:01:10.8]}
51... d2 {[%clk 0:00:05.4]} 52. Ke6 {[%clk 0:01:11.7]} 52... d1=Q {[%clk
0:00:04.9]} 53. Ke7 {[%clk 0:01:12.6]} 53... Qe5# {[%clk 0:00:05]} 0-1